bitfinex/quotes_BTCUSD_20240828
["timestamp","ask_amount","ask_price","bid_price","bid_amount"]
[1724879267089,1.64984131,59359.0,59358.0,0.0009009]
[1724879267571,1.64818736,59359.0,59358.0,0.0009009]
[1724879268040,1.523194,59359.0,59358.0,0.0009009]
[1724879268264,1.64818736,59359.0,59358.0,0.0009009]
[1724879268509,1.523194,59359.0,59358.0,0.0009009]
[1724879268737,1.64818736,59359.0,59358.0,0.0009009]
[1724879269448,1.65018736,59359.0,59358.0,0.0009009]
[1724879269883,1.64818736,59359.0,59358.0,0.0009009]
[1724879270102,1.62338513,59359.0,59358.0,0.0009009]
[1724879270564,1.523194,59359.0,59358.0,0.0009009]
[1724879271017,1.64844209,59359.0,59358.0,0.0009009]
[1724879271234,1.62339183,59359.0,59358.0,0.0009009]
[1724879272059,1.623386,59359.0,59358.0,0.0009009]
[1724879272263,1.523194,59359.0,59358.0,0.0009009]
[1724879272665,1.525194,59359.0,59358.0,0.0009009]
[1724879273443,1.542787,59359.0,59358.0,0.0009009]
[1724879273663,1.668027,59359.0,59358.0,0.0009009]
[1724879274037,1.8356083,59359.0,59358.0,0.0009009]
[1724879274443,1.8103683,59359.0,59358.0,0.0009009]
[1724879275246,1.96065631,59359.0,59358.0,0.0009009]
[1724879277181,1.79307501,59359.0,59358.0,0.0009009]
[1724879280625,1.79107501,59359.0,59358.0,0.0009009]
[1724879280838,1.640787,59359.0,59358.0,0.0823009]
[1724879281084,0.019593,59359.0,59358.0,0.0823009]
[1724879281327,0.002,59359.0,59358.0,0.25989979]
[1724879281542,0.002,59359.0,59358.0,1.34171695]
[1724879282039,0.000819,59360.0,59359.0,1.261762]
[1724879282259,0.000819,59362.0,59361.0,1.259723]
[1724879282494,0.000819,59362.0,59361.0,1.320723]
[1724879282714,0.000819,59362.0,59361.0,1.34981975]
[1724879282958,0.000819,59362.0,59361.0,1.34781975]
[1724879283637,0.001819,59362.0,59361.0,1.34881975]
[1724879284291,0.000819,59362.0,59361.0,1.34781975]
[1724879285609,0.001819,59362.0,59361.0,1.35881975]
[1724879286027,0.000819,59362.0,59361.0,1.34781975]
[1724879286461,0.0264273,59364.0,59363.0,1.179185]
[1724879286673,0.0264273,59364.0,59363.0,1.323185]
[1724879286897,0.0264273,59364.0,59363.0,1.32927789]
[1724879287384,0.0264273,59364.0,59363.0,1.32827789]
[1724879288909,0.0274273,59364.0,59363.0,1.34027789]
[1724879289538,0.02722454,59364.0,59363.0,1.34027789]
[1724879290197,0.000819,59375.0,59374.0,0.986217]
[1724879290411,0.000819,59375.0,59374.0,1.323064]
[1724879290648,0.000819,59375.0,59374.0,1.32913567]
[1724879292445,0.001819,59375.0,59374.0,1.33713567]
[1724879292879,0.001819,59375.0,59374.0,0.15017167]
[1724879293095,0.000819,59375.0,59374.0,0.31859467]
[1724879293314,0.001819,59375.0,59374.0,0.66944167]
[1724879293726,0.000819,59375.0,59374.0,0.65544167]
[1724879294153,0.001819,59375.0,59374.0,0.66944167]
[1724879294859,0.001819,59375.0,59374.0,0.77007094]
[1724879295550,0.001819,59375.0,59374.0,1.10691794]
[1724879297325,0.001819,59375.0,59374.0,1.00628867]
[1724879298440,0.001819,59375.0,59374.0,0.66944167]
[1724879298668,0.0282371,59375.0,59374.0,0.66944167]
[1724879302631,0.0282371,59375.0,59374.0,0.16417167]
[1724879302836,0.0282371,59375.0,59374.0,0.33259467]
[1724879303045,0.0282371,59375.0,59374.0,0.16417167]
[1724879303255,0.0282371,59375.0,59374.0,0.33259467]
[1724879303686,0.0282371,59375.0,59374.0,0.16417167]
[1724879304129,0.0282371,59375.0,59374.0,0.33259467]
[1724879305226,0.0282371,59375.0,59374.0,0.16417167]
[1724879305470,0.0282371,59375.0,59374.0,0.10167167]
[1724879305681,0.1966581,59375.0,59374.0,0.10167167]
[1724879305894,0.0282371,59375.0,59374.0,0.10167167]
[1724879306540,0.0282371,59375.0,59374.0,0.27009467]
[1724879306749,0.0282371,59375.0,59374.0,0.33684004]
[1724879306970,0.0282371,59375.0,59374.0,0.67368704]
[1724879307385,0.0282371,59375.0,59374.0,0.33684004]
[1724879307587,0.0282371,59375.0,59374.0,0.27009467]
[1724879308196,0.0282371,59375.0,59374.0,0.10167167]
[1724879309031,0.1966581,59375.0,59374.0,0.10167167]
[1724879309238,0.0282371,59375.0,59374.0,0.10167167]
[1724879309649,0.1966581,59375.0,59374.0,0.10167167]
[1724879311619,0.5335001,59375.0,59374.0,0.10167167]
[1724879311831,0.8703421,59375.0,59374.0,0.02007167]
[1724879312037,0.8703421,59375.0,59374.0,0.014]
[1724879312736,1.2071841,59375.0,59374.0,0.014]
[1724879313112,1.2071841,59375.0,59367.0,0.083]
[1724879313113,0.842202,59368.0,59367.0,0.083]
[1724879313334,0.168449,59365.0,59364.0,0.0807009]
[1724879313886,0.19487199,59365.0,59364.0,0.0807009]
[1724879314724,0.02642299,59365.0,59364.0,0.0807009]
[1724879315146,0.02642299,59365.0,59364.0,0.0857009]
[1724879315354,0.19487199,59365.0,59364.0,0.0857009]
[1724879317478,0.02642299,59365.0,59364.0,0.0857009]
[1724879318337,0.02642299,59365.0,59364.0,0.0807009]
[1724879318552,0.02742299,59365.0,59364.0,0.0877009]
[1724879319196,0.02742299,59365.0,59364.0,0.15342899]
[1724879319446,0.02742299,59365.0,59364.0,0.15947319]
[1724879320539,0.02742299,59365.0,59364.0,0.0937451]
[1724879320769,0.02742299,59365.0,59364.0,0.2621971]
[1724879320970,0.02742299,59365.0,59364.0,0.0937451]
[1724879321416,0.02742299,59365.0,59364.0,0.2621971]
[1724879323593,0.02742299,59365.0,59364.0,0.0139451]
[1724879323594,0.59386999,59365.0,59364.0,0.0139451]
[1724879323816,1.34404078,59365.0,59364.0,0.0139451]
[1724879324031,1.28836599,59365.0,59364.0,0.0079009]
[1724879324473,1.28736599,59365.0,59364.0,0.0009009]
[1724879324906,1.28836599,59365.0,59364.0,0.0009009]
[1724879325134,1.28336599,59365.0,59364.0,0.0009009]
[1724879325341,1.26766599,59365.0,59364.0,0.0009009]
[1724879325565,1.2744794,59365.0,59364.0,0.0009009]
[1724879326446,1.2794794,59365.0,59364.0,0.0009009]
[1724879326656,1.46553452,59365.0,59364.0,0.0009009]
[1724879326906,1.2951794,59365.0,59364.0,0.0009009]
[1724879327996,1.2901794,59365.0,59364.0,0.0009009]
[1724879328256,1.2744794,59365.0,59364.0,0.0009009]
[1724879329600,1.93625535,59365.0,59364.0,0.0009009]
[1724879329811,1.81052156,59365.0,59364.0,0.0009009]
[1724879330027,2.24741956,59365.0,59364.0,0.0009009]
[1724879330257,2.24941956,59365.0,59364.0,0.0009009]
[1724879330999,1.91152156,59365.0,59364.0,0.0009009]
[1724879331206,1.91852156,59365.0,59364.0,0.0019009]
[1724879331634,1.91152156,59365.0,59364.0,0.0009009]
[1724879332072,1.91831882,59365.0,59364.0,0.0019009]
[1724879332293,1.91831882,59365.0,59358.0,0.0009009]
[1724879332294,1.611494,59359.0,59358.0,0.0009009]
[1724879332512,1.84732246,59359.0,59358.0,0.0009009]
[1724879332720,2.43531724,59359.0,59358.0,0.0009009]
[1724879333150,2.28425446,59359.0,59358.0,0.0009009]
[1724879334231,2.07101923,59359.0,59358.0,0.0009009]
[1724879334467,2.04587471,59359.0,59358.0,0.0009009]
[1724879334723,2.08001923,59359.0,59358.0,0.0019009]
[1724879334945,2.24857087,59359.0,59358.0,0.0019009]
[1724879335153,2.07101923,59359.0,59358.0,0.0009009]
[1724879335371,2.02269754,59359.0,59358.0,0.0009009]
[1724879335605,2.02069754,59359.0,59358.0,0.0009009]
[1724879335806,1.94532246,59359.0,59358.0,0.0009009]
[1724879336051,1.92962246,59359.0,59358.0,0.0009009]
[1724879336699,1.94362246,59359.0,59358.0,0.0009009]
[1724879337131,1.92962246,59359.0,59358.0,0.0009009]
[1724879337344,1.93647078,59359.0,59358.0,0.0009009]
[1724879337785,1.94647078,59359.0,59358.0,0.0009009]
[1724879338497,1.93647078,59359.0,59358.0,0.0009009]
[1724879338909,2.15481081,59359.0,59358.0,0.0009009]
[1724879339123,2.21067132,59359.0,59358.0,0.0009009]
[1724879339350,1.196321,59356.0,59355.0,0.008998]
[1724879339563,1.42550939,59356.0,59355.0,0.008998]
[1724879339781,1.83779888,59356.0,59355.0,0.008998]
[1724879340415,1.85814704,59356.0,59355.0,0.008998]
[1724879340625,1.539074,59352.0,59351.0,0.0012998]
[1724879340835,1.77490246,59352.0,59351.0,0.0012998]
[1724879341046,1.87490246,59352.0,59351.0,0.0012998]
[1724879342311,1.88167578,59352.0,59351.0,0.0012998]
[1724879342718,1.95900844,59352.0,59351.0,0.0012998]
[1724879343140,2.29598044,59352.0,59351.0,0.0012998]
[1724879343353,1.96600844,59352.0,59351.0,0.0012998]
[1724879343807,2.31298044,59352.0,59351.0,0.0012998]
[1724879344013,2.13749444,59352.0,59351.0,0.0012998]
[1724879344224,2.06016178,59352.0,59351.0,0.0012998]
[1724879344647,2.22864778,59352.0,59351.0,0.0012998]
[1724879346792,1.89167578,59352.0,59351.0,0.0012998]
[1724879346995,1.87597578,59352.0,59351.0,0.0012998]
[1724879347548,1.89356878,59352.0,59351.0,0.0012998]
[1724879350053,2.22875235,59352.0,59351.0,0.0012998]
[1724879350278,2.59015074,59352.0,59351.0,0.0012998]
[1724879350505,2.59057594,59352.0,59351.0,0.0012998]
[1724879351020,2.59057594,59352.0,59344.0,0.00012]
[1724879351021,1.83308246,59345.0,59344.0,0.00012]
[1724879351256,2.08780069,59345.0,59344.0,0.00012]
[1724879351486,2.45013707,59345.0,59344.0,0.00012]
[1724879351716,2.42400966,59345.0,59344.0,0.00012]
[1724879351935,2.55013528,59345.0,59344.0,0.00012]
[1724879352156,2.42400966,59345.0,59344.0,0.00012]
[1724879352616,2.27009446,59345.0,59344.0,0.00012]
[1724879353708,2.29115789,59345.0,59344.0,0.00012]
[1724879354118,2.29063982,59345.0,59344.0,0.00012]
[1724879354533,1.63709936,59345.0,59344.0,0.00012]
[1724879354755,1.78862457,59345.0,59344.0,0.00012]
[1724879354968,0.75232481,59345.0,59344.0,0.14662]
[1724879355177,0.51206336,59345.0,59344.0,0.1623818]
[1724879355382,0.86307536,59345.0,59344.0,0.14662]
[1724879355808,0.84907536,59345.0,59344.0,0.14662]
[1724879356018,0.84907536,59345.0,59344.0,0.15254323]
[1724879356222,0.51206336,59345.0,59344.0,0.14662]
[1724879356633,0.84907536,59345.0,59344.0,0.14662]
[1724879356840,0.89958096,59345.0,59344.0,0.14662]
[1724879357264,0.56256896,59345.0,59344.0,0.14662]
[1724879357476,0.51206336,59345.0,59344.0,0.14662]
[1724879357678,0.61307082,59345.0,59344.0,0.14662]
[1724879357880,0.84907536,59345.0,59344.0,0.14662]
[1724879358111,0.95008282,59345.0,59344.0,0.14662]
[1724879358730,0.84907536,59345.0,59344.0,0.14662]
[1724879359138,0.84907536,59345.0,59344.0,0.1475198]
[1724879359503,0.97533468,59345.0,59344.0,0.1475198]
[1724879359702,0.97633468,59345.0,59344.0,0.1475198]
[1724879360422,0.85007536,59345.0,59344.0,0.1475198]
[1724879360669,1.3057958,59345.0,59344.0,0.1475198]
[1724879360873,1.18708736,59345.0,59344.0,0.1475198]
[1724879361703,1.18608736,59345.0,59344.0,0.1475198]
[1724879361907,1.19008736,59345.0,59344.0,0.1475198]
[1724879362756,1.20768036,59345.0,59344.0,0.1475198]
[1724879364282,0.87066836,59345.0,59344.0,0.1475198]
[1724879364461,0.86360493,59345.0,59344.0,0.1475198]
[1724879364700,0.98992655,59345.0,59344.0,0.1475198]
[1724879365381,0.98592655,59345.0,59344.0,0.1475198]
[1724879365559,0.98892655,59345.0,59344.0,0.1475198]
[1724879365908,0.98592655,59345.0,59344.0,0.1475198]
[1724879366338,0.98792655,59345.0,59344.0,0.1475198]
[1724879366569,0.98792655,59345.0,59344.0,0.1352198]
[1724879366570,0.86160493,59345.0,59344.0,0.1352198]
[1724879366897,0.85960493,59345.0,59344.0,0.1352198]
[1724879367387,0.86665965,59345.0,59344.0,0.1352198]
[1724879370894,1.20367165,59345.0,59344.0,0.1352198]
[1724879371116,0.86665965,59345.0,59344.0,0.1352198]
[1724879371328,0.86747865,59345.0,59344.0,0.1352198]
[1724879372392,0.86747865,59345.0,59344.0,0.0008998]
[1724879372623,1.33229065,59345.0,59344.0,0.0008998]
[1724879372863,1.73020265,59345.0,59344.0,0.0008998]
[1724879373084,1.90076778,59345.0,59344.0,0.0008998]
[1724879373759,2.14859624,59345.0,59344.0,0.0008998]
[1724879373979,1.88933111,59345.0,59344.0,0.0008998]
[1724879374223,2.05996446,59345.0,59344.0,0.0008998]
[1724879374438,1.88933111,59345.0,59344.0,0.0008998]
[1724879375058,1.87733111,59345.0,59344.0,0.0008998]
[1724879375280,1.89133111,59345.0,59344.0,0.0008998]
[1724879375711,2.21650027,59345.0,59344.0,0.0008998]
[1724879375911,2.24430027,59345.0,59344.0,0.0008998]
[1724879376110,2.25630027,59345.0,59344.0,0.0008998]
[1724879376345,2.25609746,59345.0,59344.0,0.0008998]
[1724879376545,2.08547994,59345.0,59344.0,0.0008998]
[1724879376744,1.9169283,59345.0,59344.0,0.0008998]
[1724879380503,1.9169283,59345.0,59339.0,0.008998]
[1724879380504,1.24444,59340.0,59339.0,0.001678]
[1724879380620,1.24444,59340.0,59331.0,0.0004]
[1724879380621,0.168543,59332.0,59331.0,0.0004]
[1724879380834,0.168543,59332.0,59331.0,0.00609909]
[1724879381059,1.179801,59332.0,59331.0,0.00609909]
[1724879381269,1.197394,59332.0,59331.0,0.0004]
[1724879382217,1.201394,59332.0,59331.0,0.0004]
[1724879383692,1.201394,59332.0,59331.0,0.0767]
[1724879386712,1.20846173,59332.0,59331.0,0.0767]
[1724879392082,0.87137573,59332.0,59331.0,0.1413]
[1724879392301,0.31648066,59332.0,59331.0,0.1413]
[1724879392518,0.09739388,59332.0,59331.0,0.1413]
[1724879392742,0.021593,59332.0,59331.0,0.14701838]
[1724879392962,0.190136,59332.0,59331.0,0.14901838]
[1724879393388,0.24066867,59332.0,59331.0,0.14901838]
[1724879393831,0.23666867,59332.0,59331.0,0.14901838]
[1724879396721,0.017593,59332.0,59331.0,1.02990332]
[1724879396931,0.017593,59332.0,59331.0,0.99764628]
[1724879397550,0.017593,59332.0,59331.0,1.33473728]
[1724879397803,0.018593,59332.0,59331.0,1.33473728]
[1724879399180,0.018593,59332.0,59331.0,1.35773728]
[1724879399388,0.000819,59339.0,59338.0,0.007]
[1724879399597,0.000819,59339.0,59338.0,1.327482]
[1724879399818,0.000819,59339.0,59338.0,1.350482]
[1724879400049,0.000819,59339.0,59338.0,1.69369865]
[1724879400264,0.000819,59339.0,59338.0,1.72749865]
[1724879400481,0.000819,59345.0,59344.0,1.56319146]
[1724879400687,0.000819,59345.0,59344.0,1.92220946]
[1724879400896,0.000819,59345.0,59344.0,1.69253022]
[1724879401535,0.000819,59345.0,59344.0,1.69153022]
[1724879402604,0.000819,59345.0,59344.0,1.72533022]
[1724879403073,0.000818,59355.0,59354.0,0.996102]
[1724879403290,0.000818,59355.0,59354.0,1.019102]
[1724879403501,0.000818,59355.0,59354.0,1.3621913]
[1724879404148,0.000818,59355.0,59354.0,1.3611913]
[1724879405272,0.001818,59355.0,59354.0,1.3751913]
[1724879406423,0.000818,59355.0,59354.0,1.3611913]
[1724879406831,0.000818,59355.0,59354.0,1.3751913]
[1724879407254,0.000818,59355.0,59354.0,1.3521913]
[1724879408994,0.000818,59365.0,59364.0,0.004]
[1724879409246,0.000818,59365.0,59364.0,0.95656034]
[1724879409446,0.000818,59365.0,59364.0,1.47744006]
[1724879410303,0.001818,59365.0,59364.0,1.49144006]
[1724879410723,0.000818,59365.0,59364.0,1.47744006]
[1724879411134,0.001818,59365.0,59364.0,1.49144006]
[1724879413030,0.000818,59365.0,59364.0,1.47744006]
[1724879413346,0.001818,59365.0,59364.0,1.49144006]
[1724879413749,0.000818,59365.0,59364.0,1.47744006]
[1724879414180,0.001818,59365.0,59364.0,1.49144006]
[1724879417215,0.001818,59365.0,59364.0,1.82834406]
[1724879417645,0.001818,59365.0,59364.0,2.26524806]
[1724879417947,0.001818,59365.0,59364.0,1.9341203]
[1724879418165,0.001818,59365.0,59364.0,1.9351203]
[1724879421050,0.001818,59365.0,59364.0,1.80876834]
[1724879422775,0.001818,59365.0,59364.0,1.47186434]
[1724879426590,0.001818,59365.0,59364.0,1.47086434]
[1724879426793,0.001818,59365.0,59364.0,1.47186434]
[1724879427342,0.001818,59365.0,59364.0,1.47086434]
[1724879427757,0.001818,59365.0,59364.0,1.80876834]
[1724879428280,0.001818,59365.0,59364.0,1.85956834]
[1724879428627,0.001818,59365.0,59364.0,2.19647234]
[1724879429000,0.001818,59365.0,59364.0,2.18247234]
[1724879429001,0.000818,59365.0,59364.0,2.18247234]
[1724879429477,0.000818,59365.0,59364.0,3.42677234]
[1724879430548,0.000818,59365.0,59364.0,3.44077234]
[1724879430906,0.000818,59365.0,59364.0,3.42677234]
[1724879431104,0.000818,59365.0,59364.0,3.44077234]
[1724879431529,0.000818,59365.0,59364.0,3.44771464]
[1724879432203,0.000819,59386.0,59374.0,1.658111]
[1724879432402,0.000819,59386.0,59374.0,1.681111]
[1724879432658,0.000819,59386.0,59374.0,1.68864964]
[1724879433670,0.000819,59386.0,59374.0,1.70264964]
[1724879438142,0.000819,59386.0,59374.0,2.08029664]
[1724879438384,0.336669,59406.0,59403.0,0.003]
[1724879438385,0.0567,59404.0,59403.0,0.003]
[1724879438833,0.0567,59404.0,59403.0,0.01046215]
[1724879439073,0.225038,59404.0,59403.0,0.003]
[1724879439303,0.225038,59404.0,59403.0,0.01046215]
[1724879439536,0.0567,59404.0,59403.0,0.01046215]
[1724879439776,0.0567,59404.0,59403.0,0.06201256]
[1724879439968,0.0567,59404.0,59403.0,0.23035356]
[1724879440207,0.0567,59404.0,59403.0,0.06201256]
[1724879440445,0.225038,59404.0,59403.0,0.06201256]
[1724879440690,0.225038,59404.0,59403.0,0.01046215]
[1724879440930,0.225038,59404.0,59403.0,0.01946215]
[1724879441432,0.0567,59408.0,59406.0,0.003]
[1724879441658,0.205619,59411.0,59407.0,0.171329]
[1724879441879,0.168325,59409.0,59407.0,0.0104543]
[1724879443668,0.168327,59408.0,59407.0,0.0144543]
[1724879443894,0.168324,59409.0,59407.0,0.0144543]
[1724879444350,0.168327,59408.0,59407.0,0.0144543]
[1724879444797,0.168327,59408.0,59407.0,0.0104543]
[1724879445589,0.168323,59410.0,59409.0,0.003]
[1724879446043,0.504966,59410.0,59409.0,0.01042354]
[1724879446272,0.393337,59412.0,59407.0,0.008]
[1724879446273,0.504981,59408.0,59407.0,0.008]
[1724879447229,0.504981,59408.0,59407.0,0.003]
[1724879447715,0.168327,59408.0,59407.0,0.003]
[1724879447934,0.504981,59408.0,59407.0,0.003]
[1724879448408,0.168338,59404.0,59403.0,0.003]
[1724879448701,0.336682,59404.0,59402.0,0.003]
[1724879448935,0.168344,59402.0,59401.0,0.003]
[1724879449175,0.505033,59402.0,59401.0,0.003]
[1724879449408,0.56175,59400.0,59399.0,0.001]
[1724879449631,0.56175,59400.0,59399.0,0.004]
[1724879449632,0.89845,59400.0,59399.0,0.004]
[1724879449860,0.56175,59400.0,59399.0,0.004]
[1724879450094,0.336674,59405.0,59399.0,0.004]
[1724879450095,0.504999,59406.0,59405.0,0.003]
[1724879450589,0.841665,59406.0,59405.0,0.003]
[1724879452595,0.841665,59406.0,59405.0,0.004]
[1724879453314,0.841665,59406.0,59405.0,0.003]
[1724879453555,0.841665,59406.0,59405.0,0.004]
[1724879454772,0.842665,59406.0,59405.0,0.012]
[1724879455007,1.179331,59406.0,59405.0,0.009]
[1724879456761,1.179331,59406.0,59405.0,0.0098998]
[1724879460264,1.236031,59406.0,59405.0,0.0098998]
[1724879460494,1.68557825,59406.0,59405.0,0.0098998]
[1724879460699,1.709997,59406.0,59405.0,0.0098998]
[1724879461808,0.999365,59406.0,59405.0,0.0098998]
[1724879461995,0.99306071,59406.0,59405.0,0.0098998]
[1724879462144,0.94850479,59406.0,59405.0,0.0018998]
[1724879462340,0.94850479,59406.0,59405.0,0.0008998]
[1724879462544,0.95650479,59406.0,59405.0,0.0018998]
[1724879462745,0.94850479,59406.0,59405.0,0.0018998]
[1724879463197,0.94850479,59406.0,59405.0,0.0028998]
[1724879463526,0.99890583,59406.0,59405.0,0.0028998]
[1724879463708,0.94850479,59406.0,59405.0,0.0028998]
[1724879464292,1.42957183,59406.0,59405.0,0.0028998]
[1724879464515,1.37917079,59406.0,59405.0,0.0028998]
[1724879464671,1.45477235,59406.0,59405.0,0.0028998]
[1724879465559,1.5051734,59406.0,59405.0,0.0028998]
[1724879466189,1.50497081,59406.0,59405.0,0.0028998]
[1724879466390,1.84163681,59406.0,59405.0,0.0028998]
[1724879466589,1.3789682,59406.0,59405.0,0.0028998]
[1724879466992,1.7156342,59406.0,59405.0,0.0028998]
[1724879467152,1.86783733,59406.0,59405.0,0.0028998]
[1724879467504,1.7166342,59406.0,59405.0,0.0028998]
[1724879467939,1.7156342,59406.0,59405.0,0.0028998]
[1724879468060,1.8669226,59406.0,59405.0,0.0028998]
[1724879468674,1.8669226,59406.0,59405.0,0.0008998]
[1724879468893,1.8709226,59406.0,59405.0,0.0028998]
[1724879469094,1.8799226,59406.0,59405.0,0.0028998]
[1724879469298,1.7296342,59406.0,59405.0,0.0018998]
[1724879469500,1.3919682,59406.0,59405.0,0.0028998]
[1724879469706,1.3989682,59406.0,59405.0,0.0028998]
[1724879470281,1.55029427,59406.0,59405.0,0.0028998]
[1724879470493,1.3989682,59406.0,59405.0,0.0028998]
[1724879471341,1.55029427,59406.0,59405.0,0.0028998]
[1724879471569,1.3989682,59406.0,59405.0,0.0028998]
[1724879471758,1.0056022,59406.0,59405.0,0.0028998]
[1724879471960,0.38924374,59406.0,59405.0,0.1435998]
[1724879472158,0.62590974,59406.0,59405.0,0.1435998]
[1724879472514,0.62590974,59406.0,59405.0,0.15825978]
[1724879472515,0.12091074,59406.0,59405.0,0.15825978]
[1724879472941,0.10491074,59406.0,59405.0,0.15725978]
[1724879473105,0.60590974,59406.0,59405.0,0.01034897]
[1724879473309,0.10491074,59406.0,59405.0,0.01034897]
[1724879473706,0.10491074,59406.0,59405.0,0.25918397]
[1724879473911,0.004,59406.0,59405.0,0.32238397]
[1724879474151,0.004,59406.0,59405.0,0.38828997]
[1724879474353,0.05446555,59406.0,59405.0,0.38928997]
[1724879474532,0.05446555,59406.0,59405.0,0.65905497]
[1724879475045,0.05446555,59406.0,59405.0,0.09184897]
[1724879475212,0.508999,59406.0,59405.0,0.01034897]
[1724879475413,0.27329413,59406.0,59405.0,0.01034897]
[1724879475616,0.508999,59406.0,59405.0,0.0028998]
[1724879476016,0.60995837,59406.0,59405.0,0.0028998]
[1724879476157,0.508999,59406.0,59405.0,0.01034897]
[1724879476360,0.508999,59406.0,59405.0,0.0028998]
[1724879476614,0.508999,59406.0,59405.0,0.01034532]
[1724879476828,0.845665,59406.0,59405.0,0.0028998]
[1724879477283,0.845665,59406.0,59405.0,0.01034762]
[1724879478080,1.182331,59406.0,59405.0,0.01034762]
[1724879478286,1.182331,59406.0,59405.0,0.0028998]
[1724879479882,1.189403,59406.0,59405.0,0.0028998]
[1724879480105,1.246103,59406.0,59405.0,0.0028998]
[1724879481328,1.39742907,59406.0,59405.0,0.0028998]
[1724879481661,1.39765829,59406.0,59405.0,0.0028998]
[1724879481864,1.720887,59406.0,59405.0,0.0028998]
[1724879482065,1.722887,59406.0,59405.0,0.0028998]
[1724879482390,1.74048,59406.0,59405.0,0.0028998]
[1724879482996,1.73648,59406.0,59405.0,0.0008998]
[1724879483211,1.74048,59406.0,59405.0,0.0018998]
[1724879483459,1.74748,59406.0,59405.0,0.0028998]
[1724879484621,1.73648,59406.0,59405.0,0.0008998]
[1724879484858,1.74948,59406.0,59405.0,0.0018998]
[1724879485074,1.91994485,59406.0,59405.0,0.0018998]
[1724879485299,1.75848,59406.0,59405.0,0.0028998]
[1724879485547,1.75648,59406.0,59405.0,0.0028998]
[1724879486154,1.74348,59406.0,59405.0,0.0018998]
[1724879486700,1.74648,59406.0,59405.0,0.0008998]
[1724879487923,1.75448,59406.0,59405.0,0.0018998]
[1724879490710,2.103146,59406.0,59405.0,0.0018998]
[1724879490912,2.127146,59406.0,59405.0,0.0018998]
[1724879500648,0.168387,59387.0,59386.0,0.0807]
[1724879500850,1.178709,59387.0,59386.0,0.0807]
[1724879501170,1.27966565,59387.0,59386.0,0.0807]
[1724879501372,1.29725865,59387.0,59386.0,0.0807]
[1724879501871,1.29825865,59387.0,59386.0,0.0887]
[1724879502458,1.29725865,59387.0,59386.0,0.0807]
[1724879502676,1.29725865,59387.0,59386.0,0.0847]
[1724879502890,1.29725865,59387.0,59386.0,0.0807]
[1724879503097,1.178726,59386.0,59385.0,0.0645]
[1724879503318,0.505186,59384.0,59383.0,0.0811]
[1724879503520,0.505186,59384.0,59379.0,0.0811]
[1724879503521,0.842032,59380.0,59379.0,0.0811]
[1724879503727,1.3050359,59380.0,59379.0,0.0811]
[1724879503922,1.178845,59380.0,59379.0,0.0811]
[1724879504409,1.30500995,59380.0,59379.0,0.0811]
[1724879504907,1.178845,59380.0,59379.0,0.0811]
[1724879505159,1.278845,59380.0,59379.0,0.0811]
[1724879505727,0.73135389,59380.0,59379.0,0.0811]
[1724879505904,0.73135389,59380.0,59379.0,0.1452]
[1724879505905,0.68089602,59380.0,59379.0,0.1452]
[1724879506107,1.01870902,59380.0,59379.0,0.1452]
[1724879506310,1.01870902,59380.0,59379.0,0.15274047]
[1724879506515,1.01870902,59380.0,59379.0,0.1452]
[1724879506720,0.65666404,59380.0,59379.0,0.1452]
[1724879506926,0.506219,59380.0,59379.0,0.1472]
[1724879507257,0.843032,59380.0,59379.0,0.1472]
[1724879516323,0.506219,59380.0,59379.0,0.16192]
[1724879516540,0.018593,59380.0,59379.0,0.670148]
[1724879516780,0.018593,59380.0,59379.0,0.6710478]
[1724879516986,0.018593,59380.0,59379.0,0.67958827]
[1724879517447,0.018593,59380.0,59379.0,1.01640727]
[1724879518394,0.018593,59380.0,59379.0,1.00168727]
[1724879521087,0.0183904,59380.0,59379.0,1.00168727]
[1724879522547,0.0183904,59380.0,59379.0,1.33850627]
[1724879523344,0.017593,59380.0,59379.0,1.33650627]
[1724879523551,0.018593,59380.0,59379.0,1.33850627]
[1724879524619,0.019593,59380.0,59379.0,1.34750627]
[1724879525835,0.019593,59380.0,59379.0,1.68432527]
[1724879526060,0.019593,59380.0,59379.0,1.34750627]
[1724879526662,0.018593,59380.0,59379.0,1.34550627]
[1724879527056,0.019593,59380.0,59379.0,1.35350627]
[1724879527715,0.001,59380.0,59379.0,1.34450627]
[1724879527841,0.001,59380.0,59379.0,1.69532527]
[1724879528071,0.001,59380.0,59379.0,1.68132527]
[1724879528528,0.001,59380.0,59379.0,1.71832527]
[1724879528983,0.017593,59387.0,59386.0,1.179726]
[1724879529190,0.017593,59387.0,59386.0,1.322126]
[1724879529486,0.017593,59387.0,59386.0,1.33263533]
[1724879530224,0.017593,59387.0,59386.0,1.34563533]
[1724879531747,0.017593,59387.0,59386.0,1.35963533]
[1724879534506,0.017593,59387.0,59386.0,1.33263533]
[1724879534710,0.017593,59387.0,59386.0,1.34663533]
[1724879534888,0.019593,59387.0,59386.0,1.36063533]
[1724879540011,0.019593,59387.0,59386.0,1.35963533]
[1724879540249,0.019593,59387.0,59386.0,1.36063533]
[1724879540910,0.019593,59387.0,59386.0,1.35963533]
[1724879541736,0.020412,59387.0,59386.0,1.35963533]
[1724879543541,0.020412,59387.0,59386.0,1.36063533]
[1724879547870,0.28909899,59400.0,59399.0,0.001]
[1724879547981,0.55744899,59400.0,59399.0,0.001]
[1724879548204,0.55744899,59400.0,59399.0,0.00847182]
[1724879549240,0.55744899,59400.0,59399.0,0.01047182]
[1724879549691,0.59474899,59400.0,59399.0,0.00947182]
[1724879550228,0.55744899,59400.0,59399.0,0.00947182]
[1724879550930,0.55744899,59400.0,59399.0,0.01647182]
[1724879551884,0.55744899,59400.0,59399.0,0.009]
[1724879553117,0.55744899,59400.0,59399.0,0.01]
[1724879553278,0.26835,59400.0,59399.0,0.01]
[1724879553765,0.26835,59400.0,59399.0,0.01747182]
[1724879554302,0.31879479,59400.0,59399.0,0.01747182]
[1724879554510,0.31881031,59400.0,59399.0,0.01747182]
[1724879555565,0.31881031,59400.0,59399.0,0.01647182]
[1724879557112,0.31882295,59400.0,59399.0,0.01647182]
[1724879557430,0.60505,59400.0,59399.0,0.01647182]
[1724879557649,0.26835,59400.0,59399.0,0.009]
[1724879558295,0.36929591,59400.0,59399.0,0.009]
[1724879559712,0.36929591,59400.0,59399.0,0.01647078]
[1724879560448,0.26835,59400.0,59399.0,0.01647078]
[1724879560891,0.26835,59400.0,59399.0,0.009]
[1724879561066,0.60505,59400.0,59399.0,0.009]
[1724879561294,1.06793238,59400.0,59399.0,0.009]